bitfinex-derivatives/quotes_SOLF0:USTF0_20241101
["timestamp","ask_amount","ask_price","bid_price","bid_amount"]
[1730480918312,1.3826,166.69,166.57,3.0024]
[1730480918514,1.3826,166.69,166.53,23.00146269]
[1730480918515,23.00146269,166.67,166.53,23.00146269]
[1730480918711,23.00146269,166.64,166.52,3.0032]
[1730480918920,23.00146269,166.64,166.51,2.99903878]
[1730480918921,2.5973,166.63,166.51,4.98]
[1730480919217,3.0022,166.59,166.5,4.98]
[1730480919414,23.00146269,166.62,166.5,4.98]
[1730480919618,1.3127,166.61,166.5,4.98]
[1730480920015,3.003,166.55,166.5,7.9836]
[1730480920416,1.3127,166.61,166.5,7.9836]
[1730480920815,1.3127,166.61,166.5,4.98]
[1730480921018,1.3127,166.61,166.5,27.98146269]
[1730480921215,24.31416269,166.61,166.5,4.98]
[1730480921616,3.0032,166.53,166.5,4.98]
[1730480921927,24.31416269,166.61,166.5,4.98]
[1730480922317,3.003,166.54,166.47,25.93495815]
[1730480922619,23.00146269,166.56,166.44,23.00146269]
[1730480922809,3.0039,166.5,166.44,23.00146269]
[1730480923009,3.0039,166.5,166.43,2.94671211]
[1730480923010,23.00146269,166.56,166.43,2.94671211]
[1730480923216,23.00146269,166.53,166.43,2.94671211]
[1730480923412,23.00146269,166.51,166.43,2.94671211]
[1730480923622,23.00146269,166.51,166.39,3.0055]
[1730480924125,23.00146269,166.48,166.37,3.0059]
[1730480924417,3.0057,166.4,166.33,23.00146269]
[1730480924623,23.00146269,166.45,166.34,7.9865]
[1730480924829,7.5935,166.47,166.34,1.10454528]
[1730480924830,23.00146269,166.43,166.34,1.10454528]
[1730480925120,3.0062,166.37,166.32,2.6874]
[1730480925312,1.3286,166.42,166.32,1.3445]
[1730480925515,3.0064,166.36,166.28,23.00146269]
[1730480925720,23.00146269,166.37,166.23,26.00986269]
[1730480925912,23.00146269,166.4,166.23,2.95721232]
[1730480925913,23.00146269,166.35,166.23,2.95721232]
[1730480926109,3.0075,166.29,166.23,2.95721232]
[1730480926315,2.5697,166.36,166.22,1.3104]
[1730480926316,2.5697,166.36,166.29,1.10498586]
[1730480926518,3.0071,166.32,166.29,1.10498586]
[1730480926911,2.5697,166.36,166.27,3.0078]
[1730480927228,2.5697,166.36,166.27,23.00146269]
[1730480927419,2.5697,166.36,166.26,3.008]
[1730480927618,2.5697,166.36,166.24,23.00146269]
[1730480927926,23.00146269,166.35,166.22,27.28238148]
[1730480928621,23.00146269,166.35,166.22,24.31186269]
[1730480928815,23.00146269,166.32,166.2,5.0]
[1730480929012,23.00146269,166.32,166.23,1.10535992]
[1730480929013,1.291,166.31,166.23,1.10535992]
[1730480929726,1.291,166.31,166.24,3.0084]
[1730480930026,1.291,166.31,166.22,23.00146269]
[1730480930225,1.291,166.31,166.21,1.262]
[1730480930726,3.0079,166.27,166.21,3.0088]
[1730480930924,1.291,166.31,166.19,28.16146269]
[1730480931127,1.291,166.31,166.19,23.00146269]
[1730480931334,23.00146269,166.3,166.16,26.00218304]
[1730480931537,1.291,166.31,166.14,2.6507]
[1730480931538,23.00146269,166.27,166.14,7.8107]
[1730480931831,3.0088,166.22,166.14,5.16]
[1730480932032,23.00146269,166.24,166.14,5.16]
[1730480932418,23.00146269,166.24,166.13,4.2838]
[1730480932730,23.00146269,166.22,166.09,1.262]
[1730480932938,23.00146269,166.17,166.04,5.16]
[1730480933229,23.00146269,166.17,166.04,5.18]
[1730480933428,3.0107,166.12,166.04,5.18]
[1730480933939,3.0107,166.12,166.04,3.07290724]
[1730480934131,3.0107,166.12,166.06,3.0116]
[1730480934342,23.00146269,166.17,166.06,3.0116]
[1730480934627,23.00146269,166.17,166.03,26.01326098]
[1730480934819,3.0104,166.13,166.03,26.01326098]
[1730480935015,23.00146269,166.17,166.03,26.01326098]
[1730480935226,23.00146269,166.13,166.03,3.01179829]
[1730480935425,3.0109,166.11,166.04,1.10666841]
[1730480935629,23.00146269,166.13,166.04,5.22515368]
[1730480935827,3.0113,166.09,166.04,1.10666841]
[1730480936121,23.00146269,166.13,166.04,1.10666841]
[1730480936324,3.0111,166.09,166.04,1.10666841]
[1730480936521,23.00146269,166.11,166.04,1.10666841]
[1730480936927,3.0111,166.09,166.04,1.10666841]
[1730480937226,23.00146269,166.06,166.04,1.10666841]
[1730480937523,23.00146269,166.06,165.92,2.5524]
[1730480937730,23.00146269,166.06,165.92,1.2918]
[1730480938323,23.00146269,166.06,165.96,3.0134]
[1730480938522,3.0125,166.02,165.96,3.0134]
[1730480938723,3.0125,166.02,165.93,6.56717077]
[1730480939029,3.0125,166.02,165.97,4.12037077]
[1730480939329,23.00146269,166.0,165.86,30.98612125]
[1730480939525,23.00146269,166.0,165.95,3.0135]
[1730480940032,26.01426269,166.0,165.95,3.0135]
[1730480940236,23.00146269,166.0,165.86,28.48146269]
[1730480940529,23.00146269,166.0,165.87,1.10766817]
[1730480940927,5.48,166.05,165.87,1.10766817]
[1730480940928,23.00146269,166.03,165.89,23.00146269]
[1730480941119,23.00146269,166.08,165.95,23.00146269]
[1730480941324,23.00146269,166.08,166.01,3.0124]
[1730480941520,23.00146269,166.08,165.96,9.80729421]
[1730480941939,1.392,166.1,165.98,23.00146269]
[1730480942237,5.48,166.16,166.05,3.0118]
[1730480942238,23.00146269,166.13,166.05,3.0118]
[1730480942531,23.00146269,166.13,165.98,23.00146269]
[1730480942830,23.00146269,166.13,166.01,23.00146269]
[1730480943030,23.00146269,166.13,165.96,9.80729421]
[1730480943031,23.00146269,166.16,166.03,23.00146269]
[1730480943231,1.3861,166.22,166.04,5.48]
[1730480943232,23.00146269,166.13,166.04,5.48]
[1730480943432,23.00146269,166.13,166.04,3.012]
[1730480943732,23.00146269,166.13,166.03,5.78]
[1730480943938,23.00146269,166.16,166.07,3.0113]
[1730480944224,23.00146269,166.19,166.03,28.78146269]
[1730480944424,37.60017658,166.18,166.1,3.0109]
[1730480944933,38.93627658,166.21,166.07,37.60017658]
[1730480945529,1.265,166.24,166.09,37.60017658]
[1730480945530,37.60017658,166.23,166.09,37.60017658]
[1730480945731,37.60017658,166.26,166.12,37.60017658]
[1730480946124,37.60017658,166.26,166.16,3.0098]
[1730480946324,37.60017658,166.26,166.16,5.78]
[1730480946525,37.60017658,166.31,166.18,37.60017658]
[1730480946737,37.60017658,166.34,166.28,3.0076]
[1730480946922,2.6381,166.36,166.28,3.0076]
[1730480947119,2.6381,166.36,166.28,3.0075]
[1730480947324,37.60017658,166.37,166.26,5.78]
[1730480947520,37.60017658,166.42,166.28,37.60017658]
[1730480948130,37.60017658,166.42,166.28,40.58090505]
[1730480948331,37.60017658,166.45,166.31,37.60017658]
[1730480948636,37.60017658,166.51,166.36,37.60017658]
[1730480948823,37.60017658,166.54,166.39,37.60017658]
[1730480949231,37.60017658,166.56,166.41,37.60017658]
[1730480949524,37.60017658,166.56,166.45,37.60017658]
[1730480949821,230.0,166.77,166.48,37.60017658]
[1730480949822,5.78,166.67,166.48,37.60017658]
[1730480950022,37.60017658,166.61,166.49,5.78]
[1730480950223,37.60017658,166.59,166.49,5.78]
[1730480950436,37.60017658,166.61,166.49,5.78]
[1730480950623,40.60207658,166.61,166.52,3.0032]
[1730480950830,37.60017658,166.61,166.49,5.78]
[1730480951131,37.60017658,166.58,166.46,38.95467658]
[1730480951335,37.60017658,166.58,166.5,8.7637]
[1730480951529,37.60017658,166.58,166.46,1.3545]
[1730480951731,37.60017658,166.56,166.46,1.3545]
[1730480951930,37.60017658,166.56,166.41,80.94017658]
[1730480951931,37.60017658,166.56,166.44,5.76]
[1730480952525,3.003,166.54,166.46,3.0043]
[1730480953136,3.003,166.54,166.44,5.76]
[1730480953137,37.60017658,166.53,166.44,8.7647]
[1730480953430,37.60017658,166.53,166.41,80.94017658]
[1730480953642,3.0035,166.52,166.44,3.0046]
[1730480953825,3.0035,166.52,166.42,5.76]
[1730480954631,40.60347658,166.53,166.44,3.0046]
[1730480954834,37.60017658,166.53,166.44,3.0046]
[1730480955037,37.60017658,166.51,166.43,5.76]
[1730480955630,3.0041,166.49,166.43,5.76]
[1730480955951,37.60017658,166.54,166.43,5.76]
[1730480956145,3.0032,166.53,166.46,3.0043]
[1730480956340,37.60017658,166.54,166.44,5.76]
[1730480956837,37.60017658,166.57,166.44,5.76]
[1730480957238,3.0029,166.55,166.47,3.0041]
[1730480957540,37.60017658,166.57,166.47,3.0041]
[1730480957834,37.60017658,166.57,166.49,3.0037]
[1730480958042,37.60017658,166.59,166.45,37.60017658]
[1730480958337,1.2768,166.61,166.48,37.60017658]
[1730480959041,3.0025,166.57,166.5,3.0035]
[1730480959245,3.0025,166.57,166.51,5.76]
[1730480959744,3.0021,166.59,166.52,3.0032]
[1730480960046,37.60017658,166.65,166.51,43.36017658]
[1730480960249,37.60017658,166.68,166.54,37.60017658]
[1730480960448,3.0013,166.64,166.57,3.0023]
[1730480960743,37.60017658,166.68,166.54,37.60017658]
[1730480961443,1.369,166.69,166.57,37.60017658]
[1730480961648,3.0007,166.67,166.61,3.0017]
[1730480961846,37.60017658,166.74,166.6,37.60017658]
[1730480962045,2.9999,166.72,166.63,37.60017658]
[1730480962239,0.97472727,166.73,166.65,3.0009]
[1730480962440,37.60017658,166.74,166.65,5.76]
[1730480963140,37.60017658,166.76,166.66,3.0008]
[1730480963141,2.9997,166.73,166.66,3.0008]
[1730480963347,37.60017658,166.74,166.65,5.76]
[1730480963646,37.60017658,166.76,166.65,5.76]
[1730480963847,3.0001,166.71,166.65,5.76]
[1730480964048,37.60017658,166.76,166.65,5.76]
[1730480964342,0.97457609,166.75,166.65,5.76]
[1730480964536,0.97457609,166.75,166.65,8.761]
[1730480964747,0.97457609,166.75,166.65,5.76]
[1730480965844,0.97462357,166.74,166.65,5.76]
[1730480966337,0.97459923,166.75,166.65,5.76]
[1730480966844,37.60017658,166.76,166.65,5.76]
[1730480967238,37.60017658,166.71,166.57,40.5762162]
[1730480967437,37.60017658,166.68,166.56,49.02]
[1730480967643,3.0016,166.62,166.56,49.02]
[1730480967839,37.60017658,166.68,166.56,49.02]
[1730480969050,3.0017,166.62,166.56,46.2625]
[1730480969237,3.0017,166.62,166.57,5.76]
[1730480969441,37.60017658,166.68,166.57,5.76]
[1730480970254,3.0023,166.58,166.57,5.76]
[1730480970448,37.60017658,166.65,166.5,37.60017658]
[1730480970641,37.60017658,166.63,166.52,7.1477]
[1730480971045,37.60017658,166.63,166.52,5.76]
[1730480971350,37.60017658,166.6,166.52,5.76]
[1730480971647,37.60017658,166.58,166.48,5.76]
[1730480971848,37.60017658,166.6,166.48,5.76]
[1730480972048,37.60017658,166.63,166.48,5.76]
[1730480972266,37.60017658,166.63,166.51,3.0034]
[1730480972447,37.60017658,166.63,166.49,37.60017658]
[1730480972845,3.0028,166.55,166.5,3.0037]
[1730480973141,37.60017658,166.6,166.48,5.76]
[1730480973541,37.60017658,166.6,166.48,8.764]
[1730480973542,3.0025,166.57,166.48,8.764]
[1730480973745,37.60017658,166.6,166.48,5.76]
[1730480974045,2.6401,166.66,166.48,5.76]
[1730480974046,37.60017658,166.63,166.49,37.60017658]
[1730480974249,3.0022,166.59,166.52,37.60017658]
[1730480974564,40.24027658,166.66,166.52,37.60017658]
[1730480974751,3.0019,166.61,166.56,3.0025]
[1730480974951,40.24027658,166.66,166.55,5.64]
[1730480975343,37.60017658,166.63,166.55,5.64]
[1730480976062,37.60017658,166.63,166.49,37.60017658]
[1730480976362,37.60017658,166.63,166.5,5.64]
[1730480976754,37.60017658,166.61,166.47,37.60017658]
[1730480977063,37.60017658,166.61,166.48,5.64]
[1730480977246,37.60017658,166.58,166.44,37.60017658]
[1730480977445,37.60017658,166.56,166.44,5.64]
[1730480977650,37.60017658,166.56,166.44,43.24017658]
[1730480977851,38.85937658,166.62,166.44,43.24017658]
[1730480977852,37.60017658,166.58,166.44,43.24017658]
[1730480978458,3.003,166.54,166.47,3.0042]
[1730480978668,37.60017658,166.58,166.47,3.0042]
[1730480979061,3.0035,166.52,166.47,3.0042]
[1730480979265,3.0035,166.52,166.44,43.24017658]
[1730480979465,3.0035,166.52,166.47,3.0041]
[1730480979666,37.60017658,166.58,166.46,37.60017658]
[1730480979960,37.60017658,166.61,166.51,3.0035]
[1730480980166,37.60017658,166.61,166.46,40.60588426]
[1730480980469,3.0032,166.53,166.49,3.0038]
[1730480980656,37.60017658,166.61,166.49,3.0038]
[1730480980857,37.60017658,166.61,166.46,40.60588426]
[1730480981265,3.003,166.54,166.46,40.60588426]
[1730480981768,3.003,166.54,166.5,3.0037]
[1730480982565,8.6418,166.66,166.52,37.60017658]
[1730480982770,2.6401,166.66,166.52,37.60017658]
[1730480983068,2.6401,166.66,166.54,37.60017658]
[1730480983474,3.0021,166.59,166.55,3.0027]
[1730480983970,2.6401,166.66,166.52,37.60017658]
[1730480984172,37.60017658,166.64,166.52,37.60017658]
[1730480984671,3.0025,166.57,166.53,3.0031]
[1730480984873,37.60017658,166.64,166.52,37.60017658]
[1730480985369,3.0025,166.57,166.53,3.0031]
[1730480985569,37.60017658,166.64,166.52,37.60017658]
[1730480986165,2.6401,166.66,166.52,37.60017658]
[1730480986166,40.24027658,166.66,166.52,37.60017658]
[1730480987471,2.6401,166.66,166.54,37.60017658]
[1730480987770,2.6401,166.66,166.5,2.5607]
[1730480987771,38.87257658,166.71,166.59,37.60017658]
[1730480987967,3.0011,166.65,166.61,3.0016]
[1730480988671,38.87257658,166.71,166.6,5.64]
[1730480989477,37.60017658,166.69,166.56,5.64]
[1730480989963,37.60017658,166.69,166.56,8.6426]
[1730480990271,3.001,166.66,166.56,8.6426]
[1730480990463,37.60017658,166.69,166.57,3.0024]
[1730480990771,3.0015,166.63,166.58,37.60017658]
[1730480990972,3.0015,166.63,166.59,3.0019]
[1730480991171,24.32407837,166.71,166.59,3.0019]
[1730480992376,3.0015,166.63,166.59,3.0019]
[1730480992872,3.0005,166.68,166.61,23.05167837]
[1730480993378,1.2724,166.71,166.64,3.0011]
[1730480993564,3.0007,166.67,166.64,3.0011]
[1730480993769,3.0007,166.67,166.63,5.32]
[1730480993770,3.0007,166.67,166.63,8.3213]
[1730480994074,1.2724,166.71,166.63,8.3213]
[1730480994478,24.32407837,166.71,166.59,1.2886]
[1730480994777,23.05167837,166.69,166.59,1.2886]
[1730480995663,23.05167837,166.69,166.55,23.05167837]
[1730480995976,23.05167837,166.66,166.53,5.32]
[1730480996178,3.0015,166.63,166.53,8.3231]
[1730480996361,23.05167837,166.66,166.53,8.3231]
[1730480996561,23.05167837,166.66,166.53,5.32]
[1730480996769,3.0029,166.55,166.53,5.32]
[1730480997074,37.49348538,166.64,166.53,5.32]
[1730480997269,2.577,166.63,166.53,5.32]
[1730480997466,2.577,166.63,166.49,43.24]
[1730480997467,40.07048538,166.63,166.49,43.24]
[1730480997773,40.07048538,166.63,166.5,5.32]
[1730480997774,3.0035,166.51,166.5,5.32]
[1730480997974,3.0035,166.51,166.48,37.49348538]
[1730480998170,3.0035,166.51,166.48,42.81348538]
[1730480998376,1.3307,166.6,166.48,42.81348538]
[1730480999562,1.3307,166.6,166.49,3.0038]
[1730480999874,1.3307,166.6,166.48,42.81348538]
[1730481000071,3.0033,166.53,166.48,45.81738538]
[1730481000274,1.3307,166.6,166.48,5.32]
[1730481001072,3.0029,166.55,166.51,3.0035]
[1730481001272,3.0029,166.55,166.48,42.81348538]
[1730481001475,1.3307,166.6,166.48,42.81348538]
[1730481001680,38.82418538,166.6,166.48,42.81348538]
[1730481002371,37.49348538,166.58,166.44,2.6434]
[1730481002573,37.49348538,166.55,166.44,6.6968]
[1730481002776,3.0046,166.46,166.44,6.6968]
[1730481003169,37.49348538,166.52,166.39,40.19428538]
[1730481003477,3.0051,166.43,166.41,5.32]
[1730481003684,3.0051,166.43,166.39,43.19988538]
[1730481003874,37.49348538,166.52,166.4,5.32]
[1730481004582,3.0049,166.44,166.4,5.32]
[1730481004876,42.81348538,166.55,166.42,37.49348538]
[1730481005083,5.32,166.55,166.42,37.49348538]
[1730481005571,42.81348538,166.55,166.42,37.49348538]
[1730481005967,42.81348538,166.55,166.4,42.81348538]
[1730481006272,3.0046,166.46,166.41,3.0052]
[1730481006581,3.0041,166.48,166.44,3.0047]
[1730481007480,3.0041,166.48,166.45,3.0045]
[1730481007778,37.49348538,166.55,166.42,37.49348538]
[1730481007779,3.0042,166.47,166.44,5.32]
[1730481008086,37.49348538,166.55,166.44,5.32]
[1730481008470,37.49348538,166.52,166.44,5.32]
[1730481008878,3.0046,166.45,166.44,5.32]
[1730481009579,3.0051,166.43,166.39,9.655]
[1730481009791,37.49348538,166.52,166.39,9.655]
[1730481010085,3.004,166.49,166.39,9.655]
[1730481010288,37.49348538,166.52,166.39,9.655]
[1730481010979,37.49348538,166.55,166.39,44.14298538]
[1730481011585,3.0046,166.46,166.42,3.005]
[1730481011785,3.0046,166.46,166.4,5.34]
[1730481012888,3.0046,166.46,166.43,3.0049]
[1730481013280,3.0046,166.46,166.4,5.34]
[1730481013281,37.49348538,166.52,166.4,5.34]
[1730481013481,37.49348538,166.49,166.39,1.3095]
[1730481013680,37.49348538,166.49,166.36,3.0061]
[1730481013979,37.49348538,166.52,166.4,37.49348538]
[1730481014187,37.49348538,166.52,166.37,42.83348538]
[1730481014381,3.0056,166.4,166.37,5.34]
[1730481014587,37.49348538,166.49,166.38,3.0057]
[1730481014796,6.0072,166.51,166.37,42.83348538]
[1730481015082,37.49348538,166.52,166.4,37.49348538]
[1730481015486,3.0047,166.45,166.41,3.0053]
[1730481016378,38.84858538,166.54,166.42,40.44244048]
[1730481016579,6.0053,166.56,166.42,37.49348538]
[1730481017183,3.0042,166.48,166.44,3.0047]
[1730481017378,3.0042,166.48,166.44,8.3447]
[1730481017986,3.0045,166.46,166.44,5.34]
[1730481018181,37.49348538,166.54,166.44,5.34]
[1730481018382,3.0046,166.45,166.44,5.34]
[1730481018577,3.0046,166.45,166.37,37.49348538]
[1730481018578,37.49348538,166.52,166.37,37.49348538]
[1730481018777,37.49348538,166.52,166.33,4.39839213]
[1730481018778,37.49348538,166.49,166.35,37.49348538]
[1730481019082,23.08998724,166.48,166.38,5.34]
[1730481019681,3.0046,166.45,166.38,5.34]
[1730481019885,23.08998724,166.48,166.38,5.34]
[1730481020289,3.0056,166.4,166.38,5.34]
[1730481020492,23.08998724,166.48,166.38,5.34]
[1730481020684,37.5148159,166.49,166.38,5.34]
[1730481020885,3.0045,166.46,166.38,8.3457]
[1730481021090,42.8548159,166.52,166.38,42.8548159]
[1730481021287,6.0054,166.56,166.41,37.5148159]
[1730481021494,6.0054,166.56,166.44,3.0047]
[1730481022288,6.0054,166.56,166.44,5.04]
[1730481022490,38.8455159,166.6,166.46,37.5148159]
[1730481022695,38.8455159,166.6,166.5,3.0036]
[1730481022696,3.003,166.54,166.5,3.0036]
[1730481022886,1.342,166.6,166.5,5.04]
[1730481023288,37.5148159,166.6,166.5,5.04]
[1730481023889,3.0034,166.52,166.5,5.04]
[1730481024096,37.5148159,166.6,166.5,5.04]
[1730481024595,3.0031,166.54,166.5,5.04]
[1730481025296,1.2596,166.63,166.51,37.5148159]
[1730481026002,1.2596,166.63,166.54,37.5148159]
[1730481026492,3.002,166.6,166.56,3.0026]
[1730481026695,1.2596,166.63,166.52,37.5148159]
[1730481027094,1.2596,166.63,166.52,40.5180159]
[1730481027398,37.5148159,166.6,166.5,5.04]
[1730481027599,1.2576,166.59,166.5,5.04]
[1730481028409,3.0033,166.53,166.5,5.04]
[1730481029799,3.0034,166.52,166.5,5.04]
[1730481030000,1.2576,166.59,166.5,5.04]
[1730481030306,3.0035,166.51,166.5,5.04]
[1730481030504,37.5148159,166.57,166.45,5.04]
[1730481031000,3.0044,166.46,166.45,5.04]
[1730481031396,3.0044,166.46,166.41,38.7912159]
[1730481031397,3.005,166.44,166.41,1.2764]
[1730481031600,3.005,166.44,166.4,5.04]
[1730481032503,6.0056,166.56,166.4,5.04]
[1730481032504,37.5148159,166.55,166.41,37.5148159]
[1730481032704,37.5148159,166.55,166.42,2.93036731]
[1730481032905,37.5148159,166.57,166.43,37.5148159]
[1730481033208,37.5148159,166.57,166.46,37.5148159]
[1730481033407,37.5148159,166.6,166.47,5.04]
[1730481033816,37.5148159,166.57,166.47,5.04]
[1730481034109,3.0041,166.48,166.47,5.04]
[1730481035712,37.5148159,166.54,166.41,37.5148159]
[1730481035903,37.5148159,166.54,166.42,8.045]
[1730481036100,37.5148159,166.54,166.42,5.04]
[1730481036508,37.5148159,166.52,166.42,5.04]
[1730481037213,3.0048,166.45,166.42,5.04]
[1730481038303,3.0048,166.45,166.42,8.0451]
[1730481038499,6.0057,166.55,166.43,37.5148159]
[1730481038703,37.5148159,166.57,166.43,37.5148159]
[1730481038910,5.04,166.59,166.43,40.5197159]
[1730481038911,37.5148159,166.55,166.43,40.5197159]
[1730481039112,3.0043,166.47,166.43,40.5197159]
[1730481039616,3.0043,166.47,166.44,3.0048]
[1730481039810,37.5148159,166.55,166.44,3.0048]
[1730481041311,3.0042,166.48,166.44,3.0048]
[1730481041511,37.5148159,166.5,166.35,37.5148159]
[1730481041812,3.0059,166.38,166.35,37.5148159]
[1730481042024,6.0089,166.46,166.35,37.5148159]
[1730481042408,3.0056,166.4,166.35,37.5148159]
[1730481042605,3.0056,166.4,166.35,3.0064]
[1730481042922,23.09018819,166.48,166.34,23.09018819]
[1730481043214,23.09018819,166.48,166.37,3.0059]
[1730481043802,3.0054,166.41,166.37,3.0059]
[1730481044406,23.09018819,166.45,166.31,66.35018819]
[1730481044611,23.09018819,166.45,166.32,5.04]
[1730481045212,3.0058,166.39,166.32,5.04]
[1730481045409,23.09018819,166.45,166.32,5.04]
[1730481045821,3.0059,166.38,166.34,3.0065]
[1730481046208,23.09018819,166.45,166.32,5.04]
[1730481046619,3.0062,166.37,166.33,3.0067]
[1730481047215,3.0063,166.36,166.33,3.0067]
[1730481048512,3.0058,166.39,166.35,3.0063]
[1730481048709,3.0058,166.39,166.32,5.04]
[1730481049220,23.09018819,166.45,166.32,5.04]
[1730481049715,23.09018819,166.45,166.33,3.0067]
[1730481049914,3.0061,166.37,166.33,3.0067]
[1730481050512,3.0061,166.37,166.32,5.04]
[1730481050710,3.0064,166.36,166.32,5.04]
[1730481050911,23.09018819,166.45,166.32,5.04]
[1730481051113,23.09018819,166.45,166.33,3.0068]
[1730481051317,3.0063,166.36,166.33,3.0068]
[1730481053023,23.09018819,166.49,166.32,5.04]
[1730481053225,23.09018819,166.52,166.37,23.09018819]
[1730481053427,23.09018819,166.52,166.38,4.78]
[1730481054121,4.78,166.55,166.38,4.78]
[1730481054122,23.09018819,166.49,166.38,4.78]
[1730481054322,23.09018819,166.46,166.38,4.78]
[1730481054524,23.09018819,166.46,166.34,4.78]
[1730481054728,23.09018819,166.46,166.35,3.0063]
[1730481055430,3.0058,166.39,166.35,3.0063]
[1730481055928,3.0058,166.39,166.36,3.0062]
[1730481056119,23.09018819,166.46,166.34,4.78]
[1730481056315,3.0061,166.37,166.34,4.78]
[1730481056525,23.09018819,166.46,166.34,7.7865]
[1730481056725,3.006,166.38,166.34,7.7865]
[1730481057129,23.09018819,166.46,166.34,7.7865]
[1730481058118,23.09018819,166.43,166.3,23.09018819]
[1730481058324,23.09018819,166.35,166.22,23.09018819]
[1730481058935,23.09018819,166.35,166.23,2.94600865]
[1730481059128,3.0076,166.29,166.26,3.008]
[1730481059430,23.09018819,166.35,166.23,2.94600865]
[1730481059630,3.0076,166.29,166.25,3.0081]
[1730481059822,23.09018819,166.35,166.22,26.11786313]
[1730481060232,3.0079,166.28,166.23,3.0085]
[1730481060429,23.09018819,166.32,166.23,3.0085]
[1730481060935,3.0083,166.25,166.21,3.0088]
[1730481061321,23.09018819,166.32,166.18,23.09018819]
[1730481061928,23.09018819,166.32,165.98,29.07418819]
[1730481061929,23.09018819,166.26,166.13,23.09018819]
[1730481062121,23.09018819,166.26,166.1,23.09018819]
[1730481062336,3.01,166.16,166.1,3.0108]
[1730481062530,23.09018819,166.23,166.1,4.78]
[1730481063035,3.0099,166.16,166.11,3.0107]
[1730481063240,23.09018819,166.23,166.1,4.78]
[1730481063439,3.0103,166.14,166.1,7.7908]
[1730481063627,23.09018819,166.23,166.1,4.78]
[1730481064025,23.09018819,166.23,166.1,27.87018819]
[1730481064541,3.0095,166.18,166.13,3.0104]
[1730481064746,23.09018819,166.26,166.13,23.09018819]
[1730481065038,3.009,166.21,166.16,3.0097]
[1730481065234,23.09018819,166.26,166.16,3.0097]
[1730481065429,23.09018819,166.26,166.12,23.09018819]
[1730481065637,3.0089,166.22,166.14,3.0102]
[1730481065835,23.09018819,166.26,166.13,23.09018819]
[1730481066040,23.09018819,166.29,166.13,23.09018819]
[1730481066238,3.0082,166.25,166.16,23.09018819]
[1730481066437,23.09018819,166.29,166.17,4.8]
[1730481067544,23.09018819,166.29,166.17,3.0095]
[1730481067843,4.8,166.32,166.07,23.09018819]
[1730481067844,23.09018819,166.23,166.07,23.09018819]
[1730481068135,23.09018819,166.23,165.9,41.12018819]
[1730481068136,3.0107,166.12,166.05,3.0117]
[1730481068338,23.09018819,166.15,165.99,30.93190631]
[1730481068539,23.09018819,166.15,165.99,27.89018819]
[1730481068934,23.09018819,166.15,166.02,23.09018819]
[1730481069133,3.011,166.1,166.06,3.0116]
[1730481069332,23.09018819,166.15,166.02,23.09018819]
[1730481070353,23.09018819,166.15,166.04,3.012]
[1730481070354,3.0113,166.09,166.04,3.012]
[1730481071056,3.0113,166.09,166.05,3.0117]
[1730481071244,3.011,166.1,165.99,27.89018819]
[1730481071451,3.011,166.1,165.99,30.94458532]
[1730481071649,23.09018819,166.15,166.02,23.09018819]
[1730481071946,3.0108,166.11,166.02,23.09018819]
[1730481072348,23.09018819,166.15,166.02,23.09018819]
[1730481072654,23.09018819,166.18,166.05,23.09018819]
[1730481072856,23.09018819,166.18,166.06,4.8]
[1730481073256,23.09018819,166.18,166.09,3.0109]
[1730481073554,23.09018819,166.2,166.07,23.09018819]
[1730481074061,3.0101,166.15,166.11,3.0106]
[1730481074246,23.09018819,166.2,166.06,4.8]
[1730481074449,3.0105,166.13,166.09,3.011]
[1730481075051,3.0107,166.12,166.08,3.0112]
[1730481075354,23.09018819,166.17,166.06,4.8]
[1730481075749,3.0107,166.12,166.06,4.8]
[1730481076455,23.09018819,166.17,166.06,4.8]
[1730481076649,3.0113,166.09,166.06,4.8]